bitfinex-derivatives/quotes_BTCF0:USTF0_20250417
["timestamp","ask_amount","ask_price","bid_price","bid_amount"]
[1744859342501,0.1779859,84284.0,84283.0,0.1525573]
[1744859342900,0.1779859,84284.0,84283.0,0.0349]
[1744859343609,0.1779859,84284.0,84283.0,0.1535573]
[1744859343809,0.1779859,84284.0,84283.0,0.1842573]
[1744859344512,0.1779859,84284.0,84283.0,0.1832573]
[1744859344713,0.1789859,84284.0,84283.0,0.1832573]
[1744859345007,0.0613281,84284.0,84283.0,0.1822573]
[1744859345215,0.002,84284.0,84283.0,0.1822573]
[1744859345510,0.001,84284.0,84283.0,0.1822573]
[1744859345807,0.1196559,84284.0,84283.0,0.1822573]
[1744859346013,0.1196559,84284.0,84283.0,0.1186573]
[1744859346214,0.1196559,84284.0,84283.0,0.1196573]
[1744859346710,0.1196559,84284.0,84283.0,0.001]
[1744859347706,0.1789844,84284.0,84283.0,0.1196573]
[1744859348210,0.1809844,84284.0,84283.0,0.1186573]
[1744859348813,0.1186587,84282.0,84281.0,0.4794594]
[1744859349309,0.003,84284.0,84282.0,0.1186587]
[1744859349509,0.1186573,84283.0,84282.0,0.1186587]
[1744859349711,0.1186573,84283.0,84282.0,0.1516387]
[1744859351114,0.1196573,84283.0,84282.0,0.1516387]
[1744859351914,0.1196573,84283.0,84282.0,0.1187387]
[1744859353317,0.1503573,84283.0,84282.0,0.1187387]
[1744859354118,0.0317,84283.0,84282.0,0.1494387]
[1744859354314,0.0327,84283.0,84282.0,0.1801387]
[1744859355224,0.0317,84283.0,84282.0,0.1801387]
[1744859355419,0.0317,84283.0,84282.0,0.1811387]
[1744859355822,0.0307,84283.0,84282.0,0.1800587]
[1744859356015,0.0307,84283.0,84282.0,0.1810587]
[1744859356321,0.0307,84283.0,84282.0,0.18128451]
[1744859356523,0.1493573,84283.0,84282.0,0.18128451]
[1744859358625,0.1493573,84283.0,84282.0,0.18136451]
[1744859358825,0.1795573,84283.0,84282.0,0.18136451]
[1744859359124,0.1805573,84283.0,84282.0,0.18036451]
[1744859359319,0.1815573,84283.0,84282.0,0.18036451]
[1744859359923,0.1805573,84283.0,84282.0,0.18036451]
[1744859360117,0.1815573,84283.0,84282.0,0.18036451]
[1744859360723,0.1815573,84283.0,84282.0,0.1800587]
[1744859360927,0.118663,84279.0,84278.0,0.00017796]
[1744859361427,0.0593337,84276.0,84272.0,0.0001458]
[1744859361621,0.4794714,84273.0,84272.0,0.0001458]
[1744859362022,0.1186869,84262.0,84261.0,0.18066172]
[1744859362821,0.1811869,84262.0,84261.0,0.18066172]
[1744859363216,0.1811869,84262.0,84261.0,0.18266172]
[1744859363629,0.1811869,84262.0,84261.0,0.18366172]
[1744859364722,0.1811869,84262.0,84261.0,0.18374172]
[1744859365119,0.1811869,84262.0,84261.0,0.00308]
[1744859365720,0.1811869,84262.0,84261.0,0.003]
[1744859366722,0.1811869,84262.0,84261.0,0.00322581]
[1744859366929,0.1811869,84262.0,84261.0,0.00330581]
[1744859370027,0.1811869,84262.0,84261.0,0.00322581]
[1744859370229,0.1811869,84262.0,84261.0,0.00330581]
[1744859370419,0.1811869,84262.0,84261.0,0.00322581]
[1744859370618,0.2588269,84262.0,84261.0,0.00322581]
[1744859370824,0.27080799,84262.0,84261.0,0.00330581]
[1744859371023,0.1186982,84254.0,84253.0,0.00017796]
[1744859371219,0.4794982,84254.0,84253.0,0.00017796]
[1744859371727,0.4794982,84254.0,84253.0,0.00025796]
[1744859371930,0.5450982,84254.0,84253.0,0.00025796]
[1744859372129,0.5450982,84254.0,84253.0,0.00225796]
[1744859372322,0.5460982,84254.0,84253.0,0.00725796]
[1744859373629,0.0336,84254.0,84253.0,0.15625756]
[1744859373831,0.0336,84254.0,84253.0,0.03755796]
[1744859374732,0.0336,84254.0,84253.0,0.06935796]
[1744859375840,0.1522982,84254.0,84253.0,0.06927796]
[1744859376026,0.1832982,84254.0,84253.0,0.06927796]
[1744859378030,0.1522982,84254.0,84253.0,0.06927796]
[1744859378625,0.1522982,84254.0,84253.0,0.00717796]
[1744859379027,0.0593527,84249.0,84245.0,0.000108]
[1744859379235,0.1187094,84246.0,84245.0,0.000108]
[1744859380441,0.1197094,84246.0,84245.0,0.007108]
[1744859380735,0.1197094,84246.0,84245.0,0.01]
[1744859380931,0.1197094,84246.0,84245.0,0.01008]
[1744859381441,0.1197094,84246.0,84245.0,0.00808]
[1744859382033,0.1187193,84239.0,84238.0,0.000108]
[1744859382433,0.4201588,84241.0,84237.0,0.00011926]
[1744859382434,0.1187207,84238.0,84237.0,0.00011926]
[1744859382640,0.1518207,84238.0,84237.0,0.00011926]
[1744859383534,0.1824207,84238.0,84237.0,0.00011926]
[1744859383729,0.1834207,84238.0,84237.0,0.00211926]
[1744859385041,0.1834207,84238.0,84237.0,0.00411926]
[1744859396244,0.1528207,84238.0,84237.0,0.00411926]
[1744859398938,0.1528207,84238.0,84237.0,0.06671926]
[1744859400639,0.1528207,84238.0,84237.0,0.03491926]
[1744859401041,0.1831207,84238.0,84237.0,0.03491926]
[1744859401855,0.1831207,84238.0,84237.0,0.00411926]
[1744859402044,0.1831207,84238.0,84237.0,0.00419926]
[1744859402949,0.1187376,84226.0,84225.0,0.18576706]
[1744859403542,0.1187376,84226.0,84225.0,0.00510534]
[1744859404146,0.1187376,84226.0,84225.0,0.12384294]
[1744859404948,0.1187376,84226.0,84225.0,0.00510534]
[1744859405154,0.1187376,84226.0,84225.0,0.01801697]
[1744859405451,0.1187376,84226.0,84225.0,0.00910534]
[1744859406051,0.1197376,84226.0,84225.0,0.01110534]
[1744859406245,0.1197376,84226.0,84225.0,0.01118534]
[1744859406455,0.1197376,84226.0,84225.0,0.01110534]
[1744859406646,0.1197376,84226.0,84225.0,0.01118534]
[1744859407045,0.1187376,84226.0,84225.0,0.00918534]
[1744859407352,0.1197376,84226.0,84225.0,0.00918534]
[1744859407952,0.1197376,84226.0,84225.0,0.00510534]
[1744859408155,0.1197376,84226.0,84225.0,0.00818534]
[1744859408353,0.1197376,84226.0,84225.0,0.00810534]
[1744859408754,0.1197376,84226.0,84225.0,0.00718534]
[1744859408947,0.1197376,84226.0,84225.0,0.00910534]
[1744859409153,0.1197376,84226.0,84225.0,0.00918534]
[1744859409753,0.1187461,84220.0,84219.0,0.04737]
[1744859409952,0.1187574,84212.0,84211.0,0.18066172]
[1744859410950,0.1807574,84212.0,84211.0,0.18066172]
[1744859411145,0.1807574,84212.0,84211.0,0.18074172]
[1744859411554,0.1807574,84212.0,84211.0,0.18374172]
[1744859411953,0.5415574,84212.0,84211.0,0.18374172]
[1744859412153,0.5415574,84212.0,84211.0,0.18074172]
[1744859412356,0.5415574,84212.0,84211.0,0.18374172]
[1744859412561,0.5425574,84212.0,84211.0,0.18374172]
[1744859412762,0.5425574,84212.0,84211.0,0.00308]
[1744859414460,0.1197574,84212.0,84211.0,0.00308]
[1744859416158,0.1197574,84212.0,84211.0,0.1218388]
[1744859416159,0.001,84212.0,84211.0,0.1218388]
[1744859416747,0.001,84212.0,84211.0,0.1832388]
[1744859417954,0.1197574,84212.0,84211.0,0.06448]
[1744859420457,0.1197574,84212.0,84211.0,0.0644]
[1744859420859,0.1530574,84212.0,84211.0,0.0644]
[1744859421260,0.1530574,84212.0,84211.0,0.00308]
[1744859421461,0.1530574,84212.0,84211.0,0.003]
[1744859421665,0.1530574,84212.0,84211.0,0.00308]
[1744859423460,0.1530574,84212.0,84211.0,0.03558]
[1744859423860,0.1530574,84212.0,84211.0,0.003]
[1744859424270,0.1530574,84212.0,84211.0,0.00308]
[1744859426769,0.3501574,84212.0,84211.0,0.00308]
[1744859426960,0.1530574,84212.0,84211.0,0.00308]
[1744859428385,0.1530574,84212.0,84211.0,0.003]
[1744859428681,0.2298974,84212.0,84211.0,0.00308]
[1744859430482,0.2298974,84212.0,84211.0,0.003]
[1744859430681,0.2298974,84212.0,84211.0,0.00308]
[1744859436791,0.4269974,84212.0,84211.0,0.00308]
[1744859438491,0.2298974,84212.0,84211.0,0.00308]
[1744859448105,0.1187658,84206.0,84205.0,0.11293416]
[1744859448406,0.1187658,84206.0,84205.0,0.17943416]
[1744859449303,0.1187658,84206.0,84205.0,0.0665]
[1744859449700,0.1197658,84206.0,84205.0,0.0705]
[1744859455502,0.1197658,84206.0,84205.0,0.1892672]
[1744859468306,0.1197658,84206.0,84205.0,0.004]
[1744859468507,0.1822658,84206.0,84205.0,0.004]
[1744859468720,0.1822658,84206.0,84205.0,0.00408]
[1744859469425,0.1822658,84206.0,84202.0,0.031]
[1744859469426,0.1781542,84205.0,84204.0,0.1187683]
[1744859469714,0.2108542,84205.0,84204.0,0.1187683]
[1744859469916,0.2424542,84205.0,84204.0,0.1187683]
[1744859470115,0.0327,84205.0,84204.0,0.1187683]
[1744859470421,0.0593764,84216.0,84204.0,0.1187683]
[1744859470422,0.07584,84223.0,84204.0,0.6108]
[1744859470616,0.1781191,84222.0,84221.0,0.1187447]
[1744859472409,0.1791191,84222.0,84221.0,0.1187447]
[1744859472615,0.001,84222.0,84221.0,0.1493447]
[1744859473115,0.1513427,84223.0,84222.0,0.1187433]
[1744859473616,0.1513427,84223.0,84222.0,0.1503433]
[1744859476116,0.1523427,84223.0,84222.0,0.1503433]
[1744859480226,0.1523427,84223.0,84222.0,0.14143193]
[1744859483025,0.1838427,84223.0,84222.0,0.14143193]
[1744859483725,0.1838427,84223.0,84222.0,0.0316]
[1744859485016,0.1187447,84221.0,84220.0,0.1187452]
[1744859485214,0.1187475,84219.0,84218.0,0.0593738]
[1744859485521,0.1187475,84219.0,84218.0,0.0594818]
[1744859485921,0.1832475,84219.0,84218.0,0.0594818]
[1744859486821,0.1832475,84219.0,84218.0,0.0604818]
[1744859486822,0.1842475,84219.0,84218.0,0.0604818]
[1744859487817,0.1842475,84219.0,84218.0,0.001108]
[1744859488017,0.1842475,84219.0,84218.0,0.001]
[1744859488223,0.1842475,84219.0,84218.0,0.00108]
[1744859488420,0.1842475,84219.0,84218.0,0.002]
[1744859488620,0.1842475,84219.0,84218.0,0.00208]
[1744859490918,0.1187503,84217.0,84216.0,0.11191981]
[1744859491520,0.1187503,84217.0,84216.0,0.20581981]
[1744859492223,0.1187503,84217.0,84216.0,0.20681981]
[1744859493118,0.1197503,84217.0,84216.0,0.20681981]
[1744859493725,0.1197503,84217.0,84216.0,0.0949]
[1744859494623,0.1197503,84217.0,84216.0,0.1197517]
[1744859496025,0.1197503,84217.0,84216.0,0.001]
[1744859498729,0.1197503,84217.0,84216.0,0.00108]
[1744859501331,0.1187588,84211.0,84210.0,0.0001458]
[1744859502130,0.1820588,84211.0,84210.0,0.0001458]
[1744859502523,0.1820588,84211.0,84210.0,0.1189046]
[1744859503032,0.1820588,84211.0,84210.0,0.1209046]
[1744859503336,0.1830588,84211.0,84210.0,0.1209046]
[1744859503533,0.1830588,84211.0,84210.0,0.1528046]
[1744859505025,0.1830588,84211.0,84210.0,0.0340458]
[1744859505225,0.1830588,84211.0,84210.0,0.152806]
[1744859507326,0.1830588,84211.0,84210.0,0.120906]
[1744859507630,0.1830588,84211.0,84210.0,0.1207602]
[1744859508132,0.0336,84211.0,84210.0,0.1208402]
[1744859508526,0.0336,84211.0,84210.0,0.1832402]
[1744859511253,0.1523588,84211.0,84210.0,0.1832402]
[1744859521944,0.0336,84211.0,84210.0,0.1832402]
[1744859522242,0.1523588,84211.0,84210.0,0.1832402]
[1744859522442,0.1523588,84211.0,84210.0,0.06448]
[1744859532657,0.0336,84211.0,84210.0,0.1832402]
[1744859534652,0.0643,84211.0,84210.0,0.1832402]
[1744859539749,0.1830588,84211.0,84210.0,0.1832402]
[1744859545760,0.1830588,84211.0,84210.0,0.00208]
[1744859546763,0.1830588,84211.0,84210.0,0.1208402]
[1744859552371,0.0643,84211.0,84210.0,0.1208402]
[1744859553161,0.0643,84211.0,84210.0,0.1519402]
[1744859558576,0.0336,84211.0,84210.0,0.1519402]
[1744859559972,0.0638,84211.0,84210.0,0.1519402]
[1744859560777,0.0638,84211.0,84210.0,0.1509402]
[1744859567384,0.1825588,84211.0,84210.0,0.001]
[1744859567680,0.1187672,84205.0,84204.0,0.1817745]
[1744859567871,0.4795672,84205.0,84204.0,0.1817745]
[1744859568175,0.4795672,84205.0,84204.0,0.18197133]
[1744859568377,0.4795672,84205.0,84204.0,0.1817745]
[1744859568574,0.5429672,84205.0,84204.0,0.1818545]
[1744859568880,0.5429672,84205.0,84204.0,0.1838545]
[1744859569680,0.55586337,84205.0,84204.0,0.1838545]
[1744859570281,0.5439672,84205.0,84204.0,0.1838545]
[1744859570581,0.0644,84205.0,84204.0,0.1208487]
[1744859570777,0.1831672,84205.0,84204.0,0.00208]
[1744859575178,0.1831672,84205.0,84204.0,0.00108]
[1744859580380,0.1831672,84205.0,84204.0,0.001]
[1744859580579,0.1187729,84201.0,84200.0,0.1]
[1744859581177,0.1187729,84201.0,84200.0,0.10008]
[1744859581380,0.1834729,84201.0,84200.0,0.10008]
[1744859583391,0.1844729,84201.0,84200.0,0.10008]
[1744859583593,0.1844729,84201.0,84193.0,0.00019683]
[1744859583594,0.1187884,84190.0,84178.0,0.24236601]
[1744859583888,0.1187983,84183.0,84178.0,0.24236601]
[1744859584088,0.1187983,84183.0,84181.0,0.000108]
[1744859584790,0.1798983,84183.0,84181.0,0.000108]
[1744859585383,0.1798983,84183.0,84178.0,0.24236601]
[1744859585578,0.1798983,84183.0,84182.0,0.1818545]
[1744859586584,0.1818983,84183.0,84182.0,0.1818545]
[1744859586780,0.0641,84183.0,84182.0,8e-05]
[1744859586990,0.0339,84183.0,84182.0,8e-05]
[1744859587183,0.1526983,84183.0,84182.0,8e-05]
[1744859593584,0.1526983,84183.0,84182.0,0.06398]
[1744859595693,0.1526983,84183.0,84182.0,0.09578]
[1744859599899,0.1526983,84183.0,84182.0,0.2145797]
[1744859603501,0.0339,84183.0,84182.0,0.2145797]
[1744859603698,0.1526983,84183.0,84182.0,0.2145797]
[1744859604102,0.003,84183.0,84182.0,0.2145797]
[1744859613697,0.0361,84183.0,84182.0,0.2145797]
[1744859622812,0.3608,84193.0,84192.0,0.1187856]
[1744859623710,0.3608,84193.0,84192.0,0.1812856]
[1744859623907,0.0302,84197.0,84196.0,0.1187799]
[1744859624722,0.0302,84197.0,84196.0,0.1812799]
[1744859625312,0.0342,84197.0,84196.0,0.1812799]
[1744859626423,0.0392,84197.0,84196.0,0.1822799]
[1744859627120,0.0342,84197.0,84196.0,0.1812799]
[1744859627418,0.0392,84197.0,84196.0,0.1822799]
[1744859627923,0.0352,84197.0,84196.0,0.1822799]
[1744859628118,0.0392,84197.0,84196.0,0.1822799]
[1744859628721,0.0352,84197.0,84196.0,0.1822799]
[1744859629518,0.0302,84197.0,84196.0,0.1822799]
[1744859630121,0.0312,84197.0,84196.0,0.1812799]
[1744859630521,0.0322,84197.0,84196.0,0.1812799]
[1744859631422,0.0312,84197.0,84196.0,0.1812799]
[1744859632227,0.0302,84197.0,84196.0,0.1812799]
[1744859632418,0.0312,84197.0,84196.0,0.1812799]
[1744859633328,0.0302,84197.0,84196.0,0.1812799]
[1744859633530,0.0312,84197.0,84196.0,0.1812799]
[1744859635831,0.0302,84197.0,84196.0,0.1812799]
[1744859636033,0.0302,84197.0,84196.0,0.1822799]
[1744859636530,0.0312,84197.0,84196.0,0.1822799]
[1744859637633,0.0302,84197.0,84196.0,0.1822799]
[1744859639134,0.0302,84197.0,84196.0,0.5430799]
[1744859639636,0.0312,84197.0,84196.0,0.5430799]
[1744859640435,0.0302,84197.0,84196.0,0.5420799]
[1744859640637,0.0312,84197.0,84196.0,0.5430799]
[1744859643531,0.0333,84205.0,84204.0,0.1187687]
[1744859643836,0.0307,84213.0,84212.0,0.1187574]
[1744859644035,0.0639,84213.0,84212.0,0.1187574]
[1744859644538,0.1187602,84211.0,84210.0,0.1187599]
[1744859644733,0.178141,84212.0,84211.0,0.1187574]
[1744859645129,0.211341,84212.0,84211.0,0.1187574]
[1744859646535,0.244041,84212.0,84211.0,0.1187574]
[1744859646736,0.247041,84212.0,84211.0,0.1187574]
[1744859647734,0.251041,84212.0,84211.0,0.1197574]
[1744859649830,0.251041,84212.0,84211.0,0.1187574]
[1744859653136,0.17815,84207.0,84206.0,0.1187654]
[1744859653442,0.1187672,84205.0,84204.0,0.00017817]
[1744859653848,0.1187672,84205.0,84204.0,0.11894687]
[1744859654147,0.2132672,84205.0,84204.0,0.00017817]
[1744859654845,0.2132672,84205.0,84204.0,0.11894687]
[1744859656152,0.2142672,84205.0,84204.0,0.11894687]
[1744859656653,0.2162672,84205.0,84204.0,0.11994687]
[1744859670550,0.2162672,84205.0,84204.0,0.15234687]
[1744859673163,0.1851672,84205.0,84204.0,0.15234687]
[1744859674460,0.1851672,84205.0,84204.0,0.00117817]
[1744859674958,0.1851672,84205.0,84204.0,0.11994687]
[1744859676570,0.1851672,84205.0,84204.0,0.18224687]
[1744859678767,0.003,84205.0,84204.0,0.18224687]
[1744859678975,0.1217672,84205.0,84204.0,0.18224687]
[1744859679270,0.1837672,84205.0,84204.0,0.18224687]
[1744859680383,0.1837672,84205.0,84204.0,0.18232687]
[1744859685770,0.1837672,84205.0,84204.0,0.15182687]
[1744859686774,0.1837672,84205.0,84204.0,0.03305817]
[1744859687174,0.1837672,84205.0,84204.0,0.15182687]
[1744859701492,0.003,84205.0,84204.0,0.15182687]
[1744859703789,0.1217672,84205.0,84204.0,0.15182687]
[1744859704784,0.1217672,84205.0,84204.0,0.03305817]
[1744859704981,0.1217672,84205.0,84204.0,0.15182687]
[1744859705421,0.1217672,84205.0,84204.0,0.03305817]
[1744859705581,0.1217672,84205.0,84204.0,0.15182687]
[1744859710192,0.1207672,84205.0,84204.0,0.15182687]
[1744859710497,0.1237672,84205.0,84204.0,0.15182687]
[1744859711086,0.004,84205.0,84204.0,0.15182687]
[1744859712185,0.1227672,84205.0,84204.0,0.15182687]
[1744859713090,0.1207672,84205.0,84204.0,0.15182687]
[1744859713290,0.1227672,84205.0,84204.0,0.15182687]
[1744859713890,0.1207672,84205.0,84204.0,0.15182687]
[1744859714091,0.1227672,84205.0,84204.0,0.15182687]
[1744859714690,0.1207672,84205.0,84204.0,0.15182687]
[1744859714894,0.1227672,84205.0,84204.0,0.15182687]
[1744859720589,0.004,84205.0,84204.0,0.15182687]
[1744859722802,0.1227672,84205.0,84204.0,0.15182687]
[1744859722998,0.1207672,84205.0,84204.0,0.15182687]
[1744859723300,0.1227672,84205.0,84204.0,0.03305817]
[1744859723505,0.1227672,84205.0,84204.0,0.03297817]
[1744859723804,0.1207672,84205.0,84204.0,0.03305817]
[1744859724096,0.1217672,84205.0,84204.0,0.03305817]
[1744859724302,0.1869672,84205.0,84204.0,0.03305817]
[1744859724903,0.1869672,84205.0,84204.0,0.15182687]
[1744859725105,0.0682,84205.0,84204.0,0.15182687]
[1744859725806,0.0358,84205.0,84204.0,0.15182687]
[1744859726704,0.0348,84205.0,84204.0,0.15182687]
[1744859727004,0.0368,84205.0,84204.0,0.15182687]
[1744859733311,0.0358,84205.0,84204.0,0.15182687]
[1744859749408,0.0671,84205.0,84204.0,0.15182687]
[1744859749715,0.0681,84205.0,84204.0,0.15182687]
[1744859752508,0.0671,84205.0,84204.0,0.15182687]
[1744859752811,0.1858672,84205.0,84204.0,0.12002687]
[1744859753012,0.0671,84205.0,84204.0,0.11994687]
[1744859753214,0.0671,84205.0,84204.0,0.12002687]
[1744859753816,0.0681,84205.0,84204.0,0.12002687]
[1744859754203,0.1868672,84205.0,84204.0,0.12002687]
[1744859754904,0.0661,84205.0,84204.0,0.11902687]
[1744859755113,0.0721,84205.0,84204.0,0.11902687]
[1744859755509,0.0661,84205.0,84204.0,0.11902687]
[1744859755707,0.0721,84205.0,84204.0,0.11902687]
[1744859756008,0.0661,84205.0,84204.0,0.11902687]
[1744859756214,0.0701,84205.0,84204.0,0.11902687]
[1744859756410,0.0721,84205.0,84204.0,0.11902687]
[1744859756611,0.0661,84205.0,84204.0,0.11902687]
[1744859756811,0.0721,84205.0,84204.0,0.11902687]
[1744859757513,0.1041,84205.0,84204.0,0.11902687]
[1744859757710,0.2228672,84205.0,84204.0,0.11902687]
[1744859758513,0.1041,84205.0,84204.0,0.11902687]
[1744859760018,0.1031,84205.0,84204.0,0.11902687]
[1744859761824,0.2218672,84205.0,84204.0,0.11902687]
[1744859762415,0.1972,84204.0,84197.0,0.05630504]
[1744859762610,0.1187828,84194.0,84193.0,0.23877751]
[1744859762809,0.1187912,84188.0,84187.0,0.22188241]
[1744859763023,0.1187997,84182.0,84181.0,0.32384591]
[1744859763222,0.1188011,84181.0,84180.0,0.00477224]
[1744859763428,0.7374011,84181.0,84180.0,4e-08]
[1744859763723,0.9874011,84181.0,84180.0,8.004e-05]
[1744859763926,0.9874011,84181.0,84180.0,4e-08]
[1744859764323,0.9874011,84181.0,84180.0,8.004e-05]
[1744859764927,0.9874011,84181.0,84180.0,4e-08]
[1744859765628,0.118811,84174.0,84173.0,0.0051085]
[1744859765825,0.57733904,84174.0,84173.0,0.0051085]
[1744859766530,0.60933904,84174.0,84173.0,0.0051085]
[1744859766831,0.61816314,84174.0,84173.0,0.0051085]
[1744859767932,0.62016314,84174.0,84173.0,0.0051085]
[1744859768123,0.62316314,84174.0,84173.0,0.0051085]
[1744859769030,1.03456314,84174.0,84173.0,0.0051085]
[1744859770129,1.03460314,84174.0,84173.0,0.0051085]
[1744859774639,0.67380314,84174.0,84173.0,0.0051085]
[1744859774838,1.39540314,84174.0,84173.0,0.0051085]
[1744859778234,1.39540314,84174.0,84173.0,0.0364085]
[1744859778630,0.67380314,84174.0,84173.0,0.0364085]
[1744859778830,1.39540314,84174.0,84173.0,0.0364085]
[1744859783845,1.36340314,84174.0,84173.0,0.0364085]
[1744859784042,1.36340314,84174.0,84173.0,0.0665085]
[1744859784238,1.31982314,84174.0,84173.0,0.0665085]
[1744859784447,1.39546314,84174.0,84173.0,0.0665085]
[1744859784843,1.39546314,84174.0,84173.0,0.0364085]
[1744859785443,0.1188124,84173.0,84172.0,0.00017817]
[1744859785643,0.1188124,84173.0,84163.0,0.0305]
[1744859785644,0.1188251,84164.0,84163.0,0.0305]
[1744859785851,0.9010251,84164.0,84163.0,0.0305]
[1744859786347,0.1188265,84163.0,84162.0,0.000108]
[1744859786545,0.1188477,84148.0,84143.0,0.01]
[1744859786744,0.1188477,84148.0,84146.0,0.000108]
[1744859786948,0.1288477,84148.0,84146.0,0.000108]
[1744859787939,0.1288477,84148.0,84144.0,0.1188532]
[1744859788252,0.1288477,84148.0,84147.0,0.00519007]
[1744859789346,0.1298477,84148.0,84147.0,0.00519007]
[1744859789849,0.50229287,84148.0,84147.0,0.00519007]
[1744859790147,0.50229287,84148.0,84147.0,0.07009007]
[1744859790448,0.91369287,84148.0,84147.0,0.07001007]
[1744859790652,0.97909287,84148.0,84147.0,0.07009007]
[1744859791550,0.94629287,84148.0,84147.0,0.07009007]
[1744859791848,0.94929287,84148.0,84147.0,0.07009007]
[1744859793557,0.91669287,84148.0,84147.0,0.07009007]
[1744859796756,0.94939287,84148.0,84147.0,0.07009007]
[1744859797058,0.98039287,84148.0,84147.0,0.07009007]
[1744859797253,0.94939287,84148.0,84147.0,0.07009007]
[1744859798670,1.02503287,84148.0,84147.0,0.07009007]
[1744859799358,1.05543287,84148.0,84147.0,0.07009007]
[1744859802354,1.02503287,84148.0,84147.0,0.07009007]
[1744859802747,0.94939287,84148.0,84147.0,0.07009007]
[1744859802969,1.02503287,84148.0,84147.0,0.07009007]
[1744859804147,0.99233287,84148.0,84147.0,0.07009007]
[1744859804353,0.91669287,84148.0,84147.0,0.07009007]
[1744859804549,0.99233287,84148.0,84147.0,0.07009007]
[1744859805147,1.02543287,84148.0,84147.0,0.07009007]
[1744859808162,0.99233287,84148.0,84147.0,0.07009007]
[1744859808465,0.99229287,84148.0,84147.0,0.07009007]
[1744859808964,0.4154,84148.0,84147.0,0.18893917]
[1744859809157,0.5342477,84148.0,84147.0,0.18893917]
[1744859811863,0.1228477,84148.0,84147.0,0.18893917]
[1744859814554,0.004,84148.0,84147.0,0.18893917]
[1744859814962,0.1228477,84148.0,84147.0,0.18893917]
[1744859819767,0.1228477,84148.0,84147.0,0.07009007]
[1744859819964,0.1228477,84148.0,84147.0,0.18893917]
[1744859820460,0.1228477,84148.0,84147.0,0.07009007]
[1744859820958,0.1228477,84148.0,84147.0,0.07001007]
[1744859821159,0.1865477,84148.0,84147.0,0.07009007]
[1744859821962,0.1865477,84148.0,84147.0,0.07001007]
[1744859822157,0.1865477,84148.0,84147.0,0.07009007]
[1744859827678,0.1865477,84148.0,84147.0,0.03729007]
[1744859827862,0.1865477,84148.0,84147.0,0.00519007]
[1744859831374,0.1865477,84148.0,84147.0,0.03659007]
[1744859831676,0.1865477,84148.0,84147.0,0.00519007]
[1744859835789,0.5979477,84148.0,84147.0,7e-08]
[1744859836083,0.5979477,84148.0,84139.0,0.0619]
[1744859836084,0.118859,84140.0,84139.0,0.0619]
[1744859836682,0.180759,84140.0,84139.0,0.06198]
[1744859837383,0.184759,84140.0,84139.0,0.06198]
[1744859839282,0.184759,84140.0,84139.0,0.03178]
[1744859841782,0.545559,84140.0,84139.0,0.03178]
[1744859843178,0.621159,84140.0,84139.0,0.03178]
[1744859848587,0.198459,84140.0,84139.0,0.03178]
[1744859848786,0.122859,84140.0,84139.0,0.03178]
[1744859848983,0.122859,84140.0,84139.0,0.1506404]
[1744859849785,0.004,84140.0,84139.0,0.2162404]
[1744859851789,0.122859,84140.0,84139.0,0.2162404]
[1744859855082,0.004,84140.0,84139.0,0.2162404]
[1744859856096,0.122859,84140.0,84139.0,0.2162404]
[1744859861296,0.004,84140.0,84139.0,0.2162404]
[1744859861904,0.122859,84140.0,84139.0,0.2162404]
[1744859862904,0.004,84140.0,84139.0,0.2162404]
[1744859877025,0.00017817,84148.0,84147.0,0.1188491]
[1744859877820,0.00017817,84148.0,84147.0,0.2137491]
[1744859878120,0.00317817,84148.0,84147.0,0.2137491]
[1744859878512,0.00717817,84148.0,84147.0,0.2137491]
[1744859881220,0.00717817,84148.0,84147.0,0.5745491]
[1744859884232,0.00717817,84148.0,84147.0,0.2137491]
[1744859885731,0.03917817,84148.0,84147.0,0.2137491]
[1744859890828,0.00717817,84148.0,84147.0,0.2137491]
[1744859896625,0.00717817,84148.0,84147.0,0.5745491]
[1744859897432,0.00717817,84148.0,84147.0,0.2137491]
[1744859897631,0.00717817,84148.0,84147.0,0.5745491]
[1744859901036,0.04027817,84148.0,84147.0,0.5745491]
[1744859906943,0.1188328,84159.0,84158.0,0.1188336]
[1744859907334,0.1517328,84159.0,84158.0,0.1188336]
[1744859907533,0.1517328,84159.0,84158.0,0.1510336]
[1744859908132,0.1637328,84159.0,84158.0,0.1510336]
[1744859910040,0.1963328,84159.0,84158.0,0.1510336]
[1744859910433,0.0775,84159.0,84158.0,0.1510336]
[1744859910638,0.1963322,84159.0,84158.0,0.1510336]
[1744859910833,0.0775,84159.0,84158.0,0.1510336]
[1744859911038,0.0775,84159.0,84158.0,0.1829336]
[1744859911841,0.1963322,84159.0,84158.0,0.1829336]
[1744859912029,0.1963322,84159.0,84158.0,0.1510336]
[1744859912538,0.0775,84159.0,84158.0,0.1510336]
[1744859918645,0.1963322,84159.0,84158.0,0.1510336]
[1744859920343,0.0775,84159.0,84158.0,0.1510336]
[1744859921949,0.11899907,84167.0,84166.0,0.1188223]
[1744859922134,0.03307817,84167.0,84163.0,0.059413]
[1744859922340,0.1782431,84163.0,84162.0,0.1188271]
[1744859922539,0.1782431,84163.0,84156.0,0.3608]
[1744859922540,0.118835,84157.0,84156.0,0.5390522]
[1744859922836,0.479635,84157.0,84156.0,0.1782522]
[1744859923437,0.479635,84157.0,84156.0,0.1783322]
[1744859923744,0.544935,84157.0,84156.0,8e-05]
[1744859923948,0.1188392,84154.0,84153.0,0.1188403]
[1744859924741,0.1842392,84154.0,84153.0,0.1188403]
[1744859925248,0.1872392,84154.0,84153.0,0.1198403]
[1744859925452,0.2627592,84154.0,84153.0,0.001]
[1744859925744,0.2657592,84154.0,84153.0,0.001]
[1744859926244,0.2657592,84154.0,84153.0,0.00108]
[1744859927248,0.1188435,84151.0,84150.0,0.00017817]
[1744859927452,0.1188463,84149.0,84148.0,0.000108]
[1744859927641,0.1188576,84141.0,84140.0,0.1188582]
[1744859928445,0.1825576,84141.0,84140.0,0.1188582]
[1744859928835,0.1825576,84141.0,84140.0,0.1209382]
[1744859930244,0.1835576,84141.0,84140.0,0.1209382]
[1744859931941,0.1835576,84141.0,84140.0,0.00208]
[1744859932342,0.19568998,84141.0,84140.0,0.00208]
[1744859932546,0.55648998,84141.0,84140.0,0.00208]
[1744859932939,0.55648998,84141.0,84140.0,0.002]
[1744859933151,0.55648998,84141.0,84140.0,0.00208]
[1744859934547,0.55648998,84141.0,84140.0,0.002]
[1744859934849,0.55648998,84141.0,84140.0,0.00208]
[1744859936349,0.96788998,84141.0,84140.0,0.00208]
[1744859936739,1.04336998,84141.0,84140.0,0.00208]
[1744859942351,0.96788998,84141.0,84140.0,0.00208]
[1744859942550,1.04340998,84141.0,84140.0,0.00208]
[1744859949457,0.1188618,84138.0,84137.0,0.0319]
[1744859950162,0.1188844,84122.0,84107.0,0.4202528]